bitfinex/quotes_SOLUSD_20250904
["timestamp","ask_amount","ask_price","bid_price","bid_amount"]
[1757001408970,72.98479673,204.34,204.33,1e-08]
[1757001410371,6.85656113,204.34,204.33,0.66000001]
[1757001410581,49.54889167,204.34,204.33,0.66000001]
[1757001413378,6.85656113,204.34,204.33,0.66000001]
[1757001413573,43.05380444,204.34,204.33,0.66000001]
[1757001413972,38.16,204.34,204.33,0.66000001]
[1757001414272,26.0,204.34,204.33,0.66000001]
[1757001414475,38.16,204.34,204.33,0.66000001]
[1757001414692,4.53233054,204.38,204.33,5.19233055]
[1757001414895,38.16,204.37,204.34,0.66]
[1757001415083,26.0,204.35,204.34,0.66]
[1757001415272,64.16,204.35,204.33,1e-08]
[1757001415769,64.16,204.35,204.34,0.66]
[1757001419192,26.0,204.36,204.34,0.66]
[1757001419380,38.14,204.35,204.34,5.19233054]
[1757001420594,5.19233054,204.4,204.34,10.08613498]
[1757001420793,38.14,204.39,204.37,4.53233054]
[1757001421091,35.42426377,204.42,204.37,4.53233054]
[1757001421092,9.42426377,204.42,204.38,0.66]
[1757001421483,38.14,204.41,204.38,0.66]
[1757001421682,38.14,204.4,204.38,5.19233054]
[1757001421878,38.14,204.4,204.39,0.66]
[1757001422280,43.37233054,204.4,204.35,0.66]
[1757001422491,4.53233054,204.36,204.33,1e-08]
[1757001422689,26.0,204.37,204.33,1e-08]
[1757001422690,42.67233054,204.35,204.33,1e-08]
[1757001422890,10.08613498,204.4,204.34,5.19233054]
[1757001423203,42.67233054,204.39,204.35,0.66]
[1757001423384,4.53233054,204.38,204.36,0.66]
[1757001423585,38.14,204.37,204.36,0.66]
[1757001423997,36.84273548,204.37,204.36,0.66]
[1757001424680,4.89403767,204.39,204.36,5.19233054]
[1757001424886,141.32401543,204.43,204.38,4.53233054]
[1757001425083,43.33233054,204.42,204.39,0.66]
[1757001425403,38.14,204.41,204.39,5.19233054]
[1757001425618,38.14,204.41,204.4,0.66]
[1757001426096,0.06,204.44,204.4,5.19233054]
[1757001426401,38.14,204.43,204.41,0.66]
[1757001427108,38.14,204.43,204.42,0.66]
[1757001428306,38.14,204.43,204.4,0.66]
[1757001428507,38.14,204.43,204.41,0.66]
[1757001428809,43.03167773,204.43,204.41,0.66]
[1757001429202,38.14,204.43,204.41,0.66]
[1757001429796,38.14,204.43,204.41,2.8992128]
[1757001429999,38.14,204.43,204.42,0.66]
[1757001430692,38.2,204.43,204.42,0.66]
[1757001430895,0.06,204.43,204.42,0.66]
[1757001431112,38.18,204.43,204.42,0.66]
[1757001431999,0.06,204.43,204.42,3.5592128]
[1757001432198,0.06,204.43,204.42,8.45110204]
[1757001432406,0.06,204.43,204.42,22.04669605]
[1757001432611,0.06,204.43,204.42,26.9995231]
[1757001432803,0.06,204.43,204.42,22.04669605]
[1757001433007,0.06,204.43,204.42,24.00714402]
[1757001433516,0.06,204.43,204.42,22.04669605]
[1757001433892,0.06,204.43,204.42,8.45110204]
[1757001434305,0.06,204.43,204.42,3.5592128]
[1757001434896,0.06,204.43,204.42,0.66]
[1757001435298,0.06,204.43,204.41,2.8992128]
[1757001435510,0.06,204.43,204.41,3.5592128]
[1757001436411,0.06,204.43,204.42,2.8992128]
[1757001437402,0.06,204.43,204.42,3.5592128]
[1757001439519,0.06,204.43,204.42,8.45110204]
[1757001440630,0.06,204.43,204.42,10.41155]
[1757001440921,0.06,204.43,204.42,8.45110204]
[1757001441217,0.06,204.43,204.42,22.04669605]
[1757001443521,0.06,204.43,204.42,8.45110204]
[1757001443728,0.06,204.43,204.42,3.5592128]
[1757001443932,0.06,204.43,204.42,2.8992128]
[1757001445124,0.06,204.43,204.41,4.89207174]
[1757001445320,0.06,204.43,204.42,2.8992128]
[1757001445511,0.06,204.43,204.4,0.71]
[1757001445711,0.06,204.43,204.42,2.8992128]
[1757001447134,0.06,204.43,204.42,3.6092128]
[1757001447520,0.06,204.43,204.42,2.8992128]
[1757001448028,0.06,204.43,204.42,8.50110204]
[1757001450731,0.06,204.43,204.42,7.79110204]
[1757001451120,0.06,204.43,204.42,8.50110204]
[1757001453848,0.06,204.43,204.42,22.09669605]
[1757001454143,0.06,204.43,204.42,19.19748325]
[1757001454321,0.06,204.43,204.42,4.85937255]
[1757001454524,0.75,204.43,204.42,1.96015975]
[1757001454722,0.75,204.43,204.4,2.8992128]
[1757001454931,0.69,204.42,204.38,19.59887833]
[1757001455136,0.69,204.41,204.38,7.79184833]
[1757001455447,0.69,204.41,204.38,10.75106113]
[1757001456018,0.06,204.43,204.38,10.75106113]
[1757001456217,0.69,204.42,204.38,10.75106113]
[1757001456425,0.69,204.42,204.38,11.46106113]
[1757001457041,0.69,204.42,204.38,10.75106113]
[1757001457545,0.69,204.41,204.38,10.75106113]
[1757001457724,0.75,204.43,204.38,10.75106113]
[1757001457919,0.69,204.42,204.38,10.75106113]
[1757001458120,0.69,204.41,204.38,5.8584256]
[1757001458332,0.69,204.4,204.37,7.82223491]
[1757001458520,0.69,204.39,204.37,7.82223491]
[1757001458839,2.8992128,204.42,204.37,2.9292128]
[1757001459016,0.69,204.41,204.37,7.82223663]
[1757001459218,0.69,204.41,204.37,8.53223663]
[1757001459442,8.54098095,204.43,204.37,8.53223663]
[1757001459644,0.69,204.42,204.37,8.53223663]
[1757001459846,0.69,204.42,204.39,2.8992128]
[1757001460052,0.06,204.43,204.41,2.8992128]
[1757001461146,0.06,204.43,204.42,2.8992128]
[1757001461346,0.06,204.43,204.42,3.6092128]
[1757001461555,0.06,204.43,204.4,0.71]
[1757001461740,0.06,204.43,204.41,2.8992128]
[1757001462146,0.06,204.43,204.42,2.8992128]
[1757001462655,0.06,204.43,204.41,2.8992128]
[1757001462852,0.69,204.42,204.4,2.8992128]
[1757001463061,0.06,204.43,204.4,2.8992128]
[1757001463241,0.75,204.43,204.41,2.8992128]
[1757001463539,0.06,204.43,204.41,2.8992128]
[1757001464329,0.75,204.43,204.4,2.8992128]
[1757001464735,3.5892128,204.42,204.37,2.9292128]
[1757001464945,0.69,204.41,204.37,2.9292128]
[1757001465161,0.69,204.4,204.37,2.9292128]
[1757001465732,3.5892128,204.39,204.37,0.03]
[1757001465930,2.8992128,204.38,204.37,0.03]
[1757001466351,3.5892128,204.38,204.37,0.03]
[1757001466861,0.69,204.41,204.37,0.03]
[1757001467634,2.8992128,204.4,204.37,0.03]
[1757001467833,40.9792128,204.39,204.37,0.03]
[1757001468156,41.6892128,204.39,204.37,0.03]
[1757001468654,2.8992128,204.38,204.37,0.03]
[1757001469151,8.50205945,204.38,204.37,0.03]
[1757001469341,41.6892128,204.38,204.37,0.03]
[1757001469537,38.79,204.38,204.37,0.03]
[1757001470252,7.79137543,204.41,204.37,0.03]
[1757001470552,38.1,204.38,204.37,0.03]
[1757001471758,38.1,204.39,204.37,0.03]
[1757001471962,38.81,204.39,204.37,0.03]
[1757001472170,26.0,204.33,204.3,0.03]
[1757001472336,67.1392128,204.33,204.3,0.03]
[1757001472535,2.8992128,204.31,204.3,0.03]
[1757001472740,26.0,204.29,204.2,2.8992128]
[1757001472949,67.1992128,204.29,204.2,16.49480681]
[1757001473156,72.804215,204.29,204.21,2.8992128]
[1757001473457,72.804215,204.29,204.2,22.10194486]
[1757001473838,72.804215,204.29,204.21,2.8992128]
[1757001474064,72.804215,204.29,204.21,7.79604434]
[1757001474840,72.804215,204.29,204.21,2.8992128]
[1757001475041,72.804215,204.29,204.2,17.20480681]
[1757001475243,72.804215,204.29,204.2,0.71]
[1757001475456,72.804215,204.29,204.17,3.6092128]
[1757001475651,72.804215,204.29,204.17,0.71]
[1757001475945,72.804215,204.29,204.17,3.6092128]
[1757001476150,34.504215,204.29,204.18,2.8992128]
[1757001476351,34.504215,204.29,204.18,8.50679677]
[1757001476745,72.784215,204.29,204.19,8.50645799]
[1757001476945,72.784215,204.29,204.19,3.6092128]
[1757001477568,72.784215,204.29,204.19,0.71]
[1757001478064,72.784215,204.29,204.17,0.71]
[1757001478251,34.504215,204.29,204.17,3.6092128]
[1757001478453,72.784215,204.29,204.18,0.71]
[1757001479166,34.504215,204.29,204.18,0.71]
[1757001479351,72.804215,204.29,204.19,2.8992128]
[1757001480156,72.804215,204.29,204.18,0.71]
[1757001480358,34.504215,204.29,204.18,3.6092128]
[1757001480564,34.504215,204.29,204.19,0.71]
[1757001480763,72.784215,204.29,204.19,3.6092128]
[1757001481355,72.784215,204.29,204.19,0.71]
[1757001481550,72.784215,204.29,204.18,2.8992128]
[1757001482271,72.784215,204.29,204.17,0.71]
[1757001482453,72.784215,204.29,204.18,3.6092128]
[1757001482653,72.784215,204.29,204.19,0.71]
[1757001482856,72.784215,204.29,204.25,0.03]
[1757001483556,34.504215,204.29,204.25,0.03]
[1757001483864,72.764215,204.29,204.25,0.03]
[1757001485575,85.0017205,204.29,204.23,0.03]
[1757001485878,2.8992128,204.25,204.23,0.03]
[1757001486250,0.71,204.27,204.23,0.03]
[1757001486452,2.8992128,204.25,204.23,0.03]
[1757001486647,41.1592128,204.25,204.23,0.03]
[1757001486857,3.6092128,204.25,204.23,0.03]
[1757001487078,41.8892128,204.25,204.23,0.03]
[1757001487573,48.4263181,204.25,204.23,0.03]
[1757001488473,4.89596083,204.25,204.23,0.03]
[1757001488979,35.43583874,204.27,204.24,0.81]
[1757001489163,38.26,204.26,204.24,0.81]
[1757001489565,43.15583677,204.26,204.24,0.81]
[1757001490171,47.69619404,204.26,204.24,0.81]
[1757001490558,38.28,204.25,204.24,0.81]
[1757001490955,4.89551197,204.27,204.24,0.81]
[1757001491162,38.26,204.26,204.24,0.81]
[1757001491577,47.69626961,204.26,204.24,0.1]
[1757001491960,5.25035727,204.25,204.24,0.1]
[1757001492368,0.71,204.25,204.24,0.1]
[1757001492562,5.25035727,204.25,204.24,0.1]
[1757001492774,43.51035727,204.25,204.24,0.1]
[1757001493074,30.89591234,204.26,204.24,0.1]
[1757001493277,38.26,204.25,204.24,0.1]
[1757001493666,48.4063181,204.25,204.24,0.1]
[1757001494983,43.86596083,204.25,204.24,0.1]
[1757001495786,43.88596083,204.25,204.24,0.1]
[1757001496381,5.60596083,204.25,204.24,0.1]
[1757001496579,43.88596083,204.25,204.24,0.1]
[1757001496780,4.89596083,204.25,204.24,0.1]
[1757001496958,43.15596083,204.25,204.24,0.1]
[1757001497163,43.86596083,204.25,204.24,0.1]
[1757001498189,43.86596083,204.25,204.24,1e-08]
[1757001499886,43.92596083,204.25,204.24,1e-08]
[1757001505790,43.88596083,204.25,204.24,1e-08]
[1757001507489,43.88596083,204.25,204.21,1e-08]
[1757001507490,26.0,204.22,204.21,1e-08]
[1757001507688,64.2,204.22,204.21,1e-08]
[1757001508079,64.91,204.22,204.21,1e-08]
[1757001508394,26.71,204.22,204.21,1e-08]
[1757001508582,64.93,204.22,204.21,1e-08]
[1757001508894,69.82668005,204.22,204.21,1e-08]
[1757001512682,30.89668005,204.22,204.21,1e-08]
[1757001512889,69.09668005,204.22,204.21,1e-08]
[1757001515798,30.89668005,204.22,204.21,1e-08]
[1757001515981,69.07668005,204.22,204.21,1e-08]
[1757001516292,69.07668005,204.22,204.21,0.69000001]
[1757001516293,4.89668005,204.22,204.21,0.69000001]
[1757001516507,43.07668005,204.22,204.21,1e-08]
[1757001517002,69.07668005,204.22,204.21,1e-08]
[1757001518898,43.07668005,204.22,204.21,1e-08]
[1757001519090,43.78668005,204.22,204.21,1e-08]
[1757001519990,69.09668005,204.22,204.21,1e-08]
[1757001520398,69.80668005,204.22,204.21,1e-08]
[1757001521181,69.09668005,204.22,204.21,1e-08]
[1757001523296,69.80668005,204.22,204.21,1e-08]
[1757001523899,69.07668005,204.22,204.21,1e-08]
[1757001525990,30.89668005,204.22,204.21,1e-08]
[1757001526199,69.09668005,204.22,204.21,1e-08]
[1757001526898,30.89668005,204.22,204.21,0.69000001]
[1757001527488,69.07668005,204.22,204.21,0.69000001]
[1757001527691,69.07668005,204.22,204.21,1e-08]
[1757001527895,69.07668005,204.22,204.21,0.66000001]
[1757001528298,30.89668005,204.22,204.21,0.66000001]
[1757001528609,69.07668005,204.22,204.21,0.66000001]
[1757001529878,69.07668005,204.22,204.21,1e-08]
[1757001531507,69.07668005,204.22,204.21,0.66000001]
[1757001531807,69.07668005,204.22,204.21,1e-08]
[1757001532194,69.73668005,204.22,204.21,1e-08]
[1757001533185,69.07668005,204.22,204.21,1e-08]
[1757001534181,69.73668005,204.22,204.21,1e-08]
[1757001538505,30.89668005,204.22,204.21,1e-08]
[1757001538706,69.05668005,204.22,204.21,1e-08]
[1757001539084,30.89668005,204.22,204.21,1e-08]
[1757001539290,69.05668005,204.22,204.21,1e-08]
[1757001541711,30.89668005,204.22,204.21,1e-08]
[1757001542027,69.05668005,204.22,204.21,1e-08]
[1757001542920,43.05668005,204.22,204.21,1e-08]
[1757001543115,69.05668005,204.22,204.21,1e-08]
[1757001543498,69.05668005,204.22,204.21,0.66000001]
[1757001543699,64.16,204.22,204.21,0.66000001]
[1757001544519,64.16,204.22,204.21,1e-08]
[1757001544722,64.16,204.22,204.21,0.66000001]
[1757001545393,64.16,204.22,204.21,1e-08]
[1757001546915,26.0,204.22,204.21,0.66000001]
[1757001547100,64.14,204.22,204.21,0.66000001]
[1757001547301,26.0,204.22,204.21,0.66000001]
[1757001547516,64.14,204.22,204.21,0.66000001]
[1757001553630,26.0,204.22,204.21,14.25559402]
[1757001553840,38.14,204.22,204.21,14.25559402]
[1757001554644,38.14,204.22,204.21,1e-08]
[1757001555038,42.71734404,204.22,204.21,1e-08]
[1757001555543,42.05734404,204.22,204.21,1e-08]
[1757001555759,29.91734404,204.22,204.21,1e-08]
[1757001555921,29.91734404,204.22,204.21,14.25559402]
[1757001555922,38.14,204.22,204.21,14.25559402]
[1757001556948,38.14,204.22,204.21,17.16087351]
[1757001557159,0.06,204.23,204.22,13.59559401]
[1757001557357,38.2,204.23,204.22,17.1608735]
[1757001557560,0.06,204.23,204.22,17.1608735]
[1757001557859,38.2,204.23,204.22,17.1608735]
[1757001558634,0.06,204.23,204.22,17.1608735]
[1757001558856,38.2,204.23,204.22,19.15227406]
[1757001559158,38.2,204.23,204.22,22.05755355]
[1757001560167,38.2,204.23,204.22,17.1608735]
[1757001560587,38.2,204.23,204.22,14.25559401]
[1757001560751,38.2,204.23,204.22,17.1608735]
[1757001561152,38.2,204.23,204.22,22.05755355]
[1757001561855,0.06,204.23,204.22,22.05755355]
[1757001562279,38.2,204.23,204.22,17.1608735]
[1757001562457,38.2,204.23,204.22,14.25559401]
[1757001562777,38.2,204.23,204.22,17.1608735]
[1757001564078,38.2,204.23,204.21,16.50087351]
[1757001564282,38.2,204.23,204.22,13.59559401]
[1757001564603,39.3696467,204.23,204.21,1e-08]
[1757001564799,0.68,204.22,204.21,1e-08]
[1757001568599,11.63,204.22,204.21,1e-08]
[1757001574210,29.99999999,204.21,204.19,0.03]
[1757001574510,64.14,204.2,204.19,0.03]
[1757001574706,64.82,204.2,204.19,0.03]
[1757001575995,26.0,204.2,204.19,0.03]
[1757001576311,64.14,204.2,204.19,0.03]
[1757001577721,26.0,204.2,204.19,0.03]
[1757001577892,64.14,204.2,204.19,0.03]
[1757001578288,64.82,204.2,204.19,0.03]
[1757001578515,38.82,204.2,204.19,0.03]
[1757001579913,0.68,204.2,204.19,0.03]
[1757001580819,38.14,204.2,204.19,14.32559401]
[1757001581396,38.14,204.2,204.19,13.62559401]
[1757001581798,38.14,204.2,204.19,0.03]
[1757001582215,38.82,204.2,204.19,0.03]
[1757001582717,38.14,204.2,204.19,0.03]
[1757001583343,38.82,204.2,204.19,0.03]
[1757001583817,38.14,204.2,204.19,0.03]
[1757001584416,29.99999999,204.21,204.19,0.03]
[1757001584592,38.14,204.2,204.19,0.03]
[1757001585709,29.99999999,204.21,204.19,0.03]
[1757001586100,38.14,204.2,204.19,0.03]
[1757001590108,29.99999999,204.21,204.19,0.03]
[1757001590312,38.14,204.2,204.19,0.73]
[1757001591314,38.14,204.2,204.19,0.03]
[1757001591712,38.86,204.2,204.19,0.03]
[1757001599120,40.82400953,204.2,204.19,0.03]
[1757001599630,2.68400953,204.2,204.19,0.03]
[1757001600035,40.88400953,204.2,204.19,0.03]
[1757001600537,2.68400953,204.2,204.19,0.03]
[1757001602548,40.90400953,204.2,204.19,0.03]
[1757001602850,74.49960354,204.2,204.19,0.03]
[1757001603342,89.22960354,204.2,204.19,0.03]
[1757001603647,146.57,204.18,204.16,0.1]
[1757001603837,58.28,204.17,204.16,0.1]
[1757001604144,87.32559401,204.17,204.16,0.1]
[1757001604868,49.04559401,204.17,204.16,0.1]
[1757001605152,87.32559401,204.17,204.16,0.1]
[1757001605863,65.04,204.17,204.16,0.1]
[1757001606351,65.08,204.17,204.16,0.1]
[1757001607338,38.34,204.17,204.16,0.1]
[1757001607544,2.68400953,204.2,204.16,0.1]
[1757001607836,38.36,204.19,204.16,0.8]
[1757001608045,26.0,204.17,204.16,0.8]
[1757001608226,38.36,204.17,204.16,0.1]
[1757001609040,39.08,204.17,204.16,0.1]
[1757001610541,26.72,204.17,204.16,0.1]
[1757001610727,65.12,204.17,204.16,0.1]
[1757001611153,38.42,204.17,204.16,0.1]
[1757001611349,26.0,204.18,204.16,0.1]
[1757001611654,38.42,204.17,204.16,0.1]
[1757001611864,2.68400953,204.2,204.16,0.1]
[1757001612034,26.0,204.17,204.16,0.1]
[1757001612253,64.42,204.17,204.16,0.1]
[1757001612753,65.14,204.17,204.16,0.1]
[1757001614347,197.04,204.17,204.16,0.1]
[1757001617673,158.62,204.17,204.16,0.1]
[1757001617862,197.04,204.17,204.16,0.1]
[1757001618374,158.62,204.17,204.16,0.1]
[1757001618576,65.14,204.17,204.16,0.1]
[1757001622360,87.7023198,204.17,204.16,0.1]
[1757001622968,67.7023198,204.17,204.16,0.1]
[1757001624870,87.7023198,204.17,204.16,0.1]
[1757001625587,116.02791381,204.17,204.16,0.1]
[1757001627216,118.58973668,204.17,204.16,0.1]
[1757001627511,80.16973668,204.17,204.16,0.1]
[1757001627806,104.95414267,204.17,204.16,0.1]
[1757001628294,66.57414267,204.17,204.16,0.1]
[1757001628473,104.95414267,204.17,204.16,0.1]
[1757001628796,104.97414267,204.17,204.16,0.1]
[1757001632288,81.6723198,204.17,204.16,0.1]
[1757001632601,82.3523198,204.17,204.16,0.1]
[1757001632785,81.6723198,204.17,204.16,0.1]
[1757001632983,43.2923198,204.17,204.16,0.1]
[1757001633188,28.5623198,204.17,204.16,0.8]
[1757001633377,30.05999999,204.21,204.16,0.8]
[1757001633577,38.38,204.2,204.16,0.8]
[1757001634078,38.38,204.2,204.17,0.7]
[1757001634295,38.38,204.2,204.18,0.7]
[1757001635100,10.25,204.18,204.16,0.1]
[1757001635307,38.4,204.17,204.16,0.1]
[1757001635798,39.08,204.17,204.16,0.1]
[1757001636598,38.4,204.17,204.16,0.1]
[1757001636789,39.08,204.17,204.16,0.1]
[1757001637106,38.44,204.17,204.16,0.1]
[1757001637594,10.25,204.18,204.16,0.1]
[1757001637781,10.25,204.18,204.16,0.34]
[1757001637981,10.25,204.18,204.16,0.1]
[1757001637982,38.44,204.17,204.16,0.1]
[1757001638694,38.44,204.17,204.16,0.34]
[1757001639290,38.44,204.17,204.16,0.1]
[1757001639489,38.44,204.17,204.16,0.34]
[1757001639691,10.25,204.18,204.16,0.34]
[1757001639899,38.44,204.17,204.16,0.34]
[1757001640089,38.44,204.17,204.16,0.1]
[1757001640284,10.25,204.18,204.16,0.1]
[1757001640489,38.44,204.17,204.16,0.1]
[1757001641178,10.25,204.18,204.16,0.34]
[1757001641383,38.44,204.17,204.16,0.34]
[1757001641592,38.44,204.17,204.16,0.1]
[1757001642295,38.44,204.17,204.16,0.34]
[1757001643605,10.25,204.18,204.16,0.34]
[1757001643775,38.42,204.17,204.16,18.48015519]
[1757001643982,38.42,204.17,204.16,13.93559401]
[1757001647003,10.25,204.18,204.16,13.93559401]
[1757001647183,10.25,204.18,204.17,18.38015519]
[1757001647984,0.06,204.21,204.17,0.24]
[1757001648185,9.28,204.21,204.2,4.54456118]
[1757001648701,0.06,204.21,204.2,4.89715964]
[1757001648886,0.06,204.21,204.2,9.44172082]
[1757001649698,0.06,204.21,204.19,13.59559401]
[1757001649901,0.06,204.21,204.2,13.59559401]
[1757001650096,0.06,204.21,204.2,18.14015519]
[1757001650482,0.06,204.21,204.2,13.59559401]
[1757001652491,0.06,204.21,204.16,0.1]
[1757001652492,26.0,204.2,204.16,0.1]
[1757001652698,38.46,204.19,204.16,0.1]
[1757001652888,39.17,204.19,204.16,0.1]
[1757001653089,0.71,204.18,204.16,0.1]
[1757001653392,0.71,204.17,204.16,0.1]
[1757001653605,38.46,204.19,204.16,0.1]
[1757001653805,0.71,204.18,204.16,0.1]
[1757001654115,38.46,204.19,204.16,0.1]
[1757001654308,0.71,204.17,204.16,0.1]
[1757001654813,39.19,204.17,204.16,0.1]
[1757001655409,38.46,204.17,204.16,0.1]
[1757001656299,0.06,204.21,204.16,0.1]
[1757001656609,0.06,204.21,204.17,13.59559401]
[1757001657014,38.48,204.2,204.17,13.59559401]
[1757001658210,38.48,204.2,204.19,4.54456118]
[1757001659116,0.06,204.21,204.19,4.54456118]
[1757001659316,0.06,204.21,204.2,18.14015519]
[1757001659824,0.06,204.21,204.2,13.59559401]
[1757001660120,0.06,204.21,204.2,18.14015519]
[1757001660926,0.06,204.21,204.2,13.59559401]
[1757001661098,0.06,204.21,204.2,18.14015519]
[1757001661794,0.06,204.21,204.2,23.03731483]
[1757001662009,0.06,204.21,204.2,13.59559401]
[1757001662237,0.06,204.21,204.2,23.03731483]
[1757001662434,0.06,204.21,204.2,22.68471637]
[1757001662840,0.06,204.21,204.2,23.03731483]
[1757001663425,0.06,204.21,204.2,27.58187601]
[1757001665046,0.06,204.21,204.2,13.59559401]
[1757001665245,0.77,204.21,204.16,0.1]
[1757001665438,0.77,204.21,204.16,4.64456118]
[1757001665638,0.71,204.2,204.16,0.1]
[1757001665950,38.48,204.19,204.16,0.1]
[1757001666338,0.71,204.18,204.16,0.1]
[1757001666550,0.71,204.17,204.16,0.1]
[1757001668829,39.17,204.17,204.16,0.1]
[1757001669839,0.77,204.21,204.16,0.1]
[1757001670027,38.46,204.17,204.16,11.06790114]
[1757001670342,38.46,204.17,204.16,0.1]
[1757001670537,39.17,204.17,204.16,0.1]
[1757001671123,0.06,204.21,204.16,0.1]
[1757001671323,0.71,204.2,204.16,0.1]
[1757001671546,0.06,204.21,204.2,13.59559401]
[1757001671756,0.06,204.21,204.2,24.56349515]
[1757001672543,0.06,204.21,204.2,29.46065479]
[1757001673129,0.06,204.21,204.2,13.59559401]
[1757001673333,0.06,204.21,204.2,24.56349515]
[1757001673548,0.06,204.21,204.2,7.26235671]
[1757001673754,0.06,204.21,204.2,13.59559401]
[1757001674058,0.06,204.21,204.2,20.85795072]
[1757001674745,0.77,204.21,204.2,13.59559401]
[1757001675154,0.06,204.21,204.2,13.59559401]
[1757001676255,0.77,204.21,204.2,13.59559401]
[1757001676633,26.77,204.21,204.16,0.1]
[1757001678439,0.66,204.2,204.16,0.1]
[1757001678639,39.18,204.19,204.16,0.1]
[1757001679757,0.66,204.18,204.16,0.1]
[1757001680068,0.66,204.17,204.16,0.1]
[1757001681337,38.5,204.18,204.17,13.59559401]
[1757001681745,38.5,204.18,204.16,20.95795072]
[1757001681947,0.72,204.21,204.16,13.69559401]
[1757001682153,38.5,204.2,204.17,7.26235671]
[1757001682368,0.66,204.2,204.17,7.26235671]
[1757001682665,0.06,204.21,204.19,20.85795072]
[1757001682964,0.72,204.21,204.2,13.59559401]
[1757001683148,0.06,204.21,204.2,13.59559401]
[1757001683538,38.58,204.21,204.2,13.59559401]
[1757001683738,39.24,204.21,204.2,13.59559401]
[1757001686555,39.24,204.21,204.16,0.1]
[1757001687057,39.24,204.21,204.16,13.69559401]
[1757001687267,39.18,204.2,204.16,13.69559401]
[1757001687566,0.66,204.19,204.16,0.1]
[1757001687750,0.66,204.18,204.16,0.1]
[1757001688262,38.52,204.17,204.16,0.1]
[1757001689053,39.18,204.17,204.16,0.1]
[1757001689950,0.06,204.21,204.16,0.1]
[1757001690158,0.66,204.2,204.17,16.50289357]
[1757001690345,38.5,204.19,204.18,16.50289357]
[1757001690663,38.5,204.19,204.18,13.59559401]
[1757001692364,39.16,204.19,204.18,13.59559401]
[1757001695046,39.16,204.19,204.16,0.1]
[1757001696767,38.46,204.18,204.16,0.1]
[1757001697169,0.66,204.17,204.16,0.1]
[1757001700592,39.08,204.17,204.16,0.1]
[1757001702193,0.06,204.21,204.16,0.1]
[1757001702194,0.66,204.19,204.16,0.1]
[1757001702377,38.42,204.18,204.17,13.59559401]
[1757001702570,0.06,204.21,204.17,20.86068086]
[1757001702768,0.06,204.21,204.2,13.59559401]
[1757001703067,38.52,204.21,204.2,7.26508685]
[1757001703564,38.52,204.21,204.17,13.59559401]
[1757001703889,38.52,204.21,204.2,7.26508685]
[1757001704490,0.06,204.21,204.2,7.26508685]
[1757001707801,0.06,204.21,204.2,12.16224649]
[1757001708969,0.06,204.21,204.2,25.7578405]
[1757001709387,0.06,204.21,204.2,18.49275365]
[1757001709565,0.06,204.21,204.2,20.86068086]
[1757001709768,0.06,204.21,204.2,13.59559401]
[1757001709969,0.06,204.21,204.2,20.86068086]
[1757001710791,0.06,204.21,204.2,13.59559401]
[1757001711007,0.06,204.21,204.2,20.86068086]
[1757001711797,0.06,204.21,204.2,13.59559401]